[Event "Titled Tuesday Blitz January 03 Early 2023"]
[White "Mitrovic, Darko R"]
[Black "KSho99"]
[WhiteFideId "927023"]
[WhiteElo "2220"]
[BlackElo "2118"]
[Result "1/2-1/2"]
[Round "09"]
[TimeControl "180+2"]
[Date "2023.01.03"]
[WhiteClock "0:00:07"]
[BlackClock "0:00:04"]

1. d4 {[%clk 0:02:06]}  f5 {[%clk 0:02:57]} 2. Nf3 {[%clk 0:02:05]}  Nf6 {[%clk 0:02:57]} 3. g3 {[%clk 0:02:05]}  g6 {[%clk 0:02:57]} 4. Bg2 {[%clk 0:02:06]}  Bg7 {[%clk 0:02:57]} 5. O-O {[%clk 0:02:06]}  O-O {[%clk 0:02:56]} 6. c4 {[%clk 0:02:07]}  d6 {[%clk 0:02:56]} 7. Nc3 {[%clk 0:02:07]}  c6 {[%clk 0:02:56]} 8. d5 {[%clk 0:02:06]}  e5 {[%clk 0:02:56]} 9. dxe6 {[%clk 0:02:02]}  Bxe6 {[%clk 0:02:56]} 10. b3 {[%clk 0:01:59]}  Na6 {[%clk 0:02:53]} 11. Bb2 {[%clk 0:01:37]}  Qc7 {[%clk 0:02:49]} 12. Ng5 {[%clk 0:01:30]}  Bd7 {[%clk 0:02:38]} 13. Rc1 {[%clk 0:01:30]}  h6 {[%clk 0:02:30]} 14. Nf3 {[%clk 0:01:29]}  Rad8 {[%clk 0:02:29]} 15. Nh4 {[%clk 0:01:17]}  g5 {[%clk 0:02:00]} 16. Nf3 {[%clk 0:01:17]}  Nc5 {[%clk 0:01:50]} 17. e3 {[%clk 0:01:14]}  Be6 {[%clk 0:01:35]} 18. Nd4 {[%clk 0:01:10]}  Bc8 {[%clk 0:01:33]} 19. Qc2 {[%clk 0:01:08]}  Nfe4 {[%clk 0:01:30]} 20. b4 {[%clk 0:01:01]}  Nxc3 {[%clk 0:01:27]} 21. Bxc3 {[%clk 0:00:52]}  Ne4 {[%clk 0:01:24]} 22. Bb2 {[%clk 0:00:19]}  Rde8 {[%clk 0:01:18]} 23. Ne2 {[%clk 0:00:16]}  Bxb2 {[%clk 0:01:15]} 24. Qxb2 {[%clk 0:00:16]}  Qg7 {[%clk 0:01:14]} 25. Qxg7+ {[%clk 0:00:15]}  Kxg7 {[%clk 0:01:14]} 26. Rfd1 {[%clk 0:00:13]}  Rd8 {[%clk 0:01:06]} 27. Nc3 {[%clk 0:00:13]}  Nxc3 {[%clk 0:00:58]} 28. Rxc3 {[%clk 0:00:13]}  Be6 {[%clk 0:00:57]} 29. f4 {[%clk 0:00:12]}  d5 {[%clk 0:00:46]} 30. cxd5 {[%clk 0:00:11]}  Bxd5 {[%clk 0:00:45]} 31. Bxd5 {[%clk 0:00:11]}  Rxd5 {[%clk 0:00:44]} 32. Rxd5 {[%clk 0:00:11]}  cxd5 {[%clk 0:00:44]} 33. Rc7+ {[%clk 0:00:09]}  Rf7 {[%clk 0:00:44]} 34. Rc8 {[%clk 0:00:08]}  Rd7 {[%clk 0:00:37]} 35. Kf2 {[%clk 0:00:07]}  Kf6 {[%clk 0:00:34]} 36. Ke2 {[%clk 0:00:06]}  d4 {[%clk 0:00:31]} 37. Rh8 {[%clk 0:00:04]}  Kg7 {[%clk 0:00:26]} 38. Rb8 {[%clk 0:00:02]}  dxe3 {[%clk 0:00:17]} 39. Kxe3 {[%clk 0:00:02]}  Kf6 {[%clk 0:00:16]} 40. a3 {[%clk 0:00:01]}  Kg7 {[%clk 0:00:12]} 41. Rc8 {[%clk 0:00:01]}  Kf6 {[%clk 0:00:09]} 42. Ra8 {[%clk 0:00:02]}  Kg7 {[%clk 0:00:09]} 43. Rxa7 {[%clk 0:00:02]}  Rc7 {[%clk 0:00:07]} 44. a4 {[%clk 0:00:02]}  Kf6 {[%clk 0:00:05]} 45. Kd4 {[%clk 0:00:02]}  Rc2 {[%clk 0:00:04]} 46. Kd3 {[%clk 0:00:02]}  Rxh2 {[%clk 0:00:04]} 47. Rxb7 {[%clk 0:00:03]}  Rh3 {[%clk 0:00:04]} 48. fxg5+ {[%clk 0:00:03]}  hxg5 {[%clk 0:00:04]} 49. a5 {[%clk 0:00:04]}  Rxg3+ {[%clk 0:00:04]} 50. Kc4 {[%clk 0:00:04]}  Ra3 {[%clk 0:00:03]} 51. Kb5 {[%clk 0:00:03]}  g4 {[%clk 0:00:03]} 52. a6 {[%clk 0:00:02]}  g3 {[%clk 0:00:03]} 53. a7 {[%clk 0:00:02]}  g2 {[%clk 0:00:02]} 54. Rb6+ {[%clk 0:00:02]}  Kg5 {[%clk 0:00:01]} 55. Ra6 {[%clk 0:00:03]}  Rxa6 {[%clk 0:00:01]} 56. Kxa6 {[%clk 0:00:04]}  g1=Q {[%clk 0:00:01]} 57. a8=Q {[%clk 0:00:04]}  Qa1+ {[%clk 0:00:01]} 58. Kb7 {[%clk 0:00:04]}  Qxa8+ {[%clk 0:00:02]} 59. Kxa8 {[%clk 0:00:05]}  f4 {[%clk 0:00:02]} 60. b5 {[%clk 0:00:05]}  f3 {[%clk 0:00:02]} 61. b6 {[%clk 0:00:06]}  f2 {[%clk 0:00:03]} 62. b7 {[%clk 0:00:06]}  f1=Q {[%clk 0:00:03]} 63. b8=Q {[%clk 0:00:07]}  Qa6+ {[%clk 0:00:04]} 64. Qa7 {[%clk 0:00:07]}  Qxa7+ {[%clk 0:00:04]} 65. Kxa7 {[%clk 0:00:07]} 1/2-1/2


[Site "https://www.chess.com"]

[Event "Titled Tuesday Blitz January 03 Early 2023"]
[White "Abasov, Nijat"]
[Black "Carlsen, Magnus"]
[WhiteFideId "13402960"]
[BlackFideId "1503014"]
[WhiteElo "2634"]
[BlackElo "2853"]
[Result "0-1"]
[Round "10"]
[TimeControl "180+2"]
[Date "2023.01.03"]
[WhiteClock "0:00:24"]
[BlackClock "0:00:59"]

1. d4 {[%clk 0:02:52]}  Nf6 {[%clk 0:02:53]} 2. Nf3 {[%clk 0:02:52]}  g6 {[%clk 0:02:50]} 3. g3 {[%clk 0:02:51]}  b5 {[%clk 0:02:45]} 4. e3 {[%clk 0:02:44]}  a6 {[%clk 0:02:45]} 5. a4 {[%clk 0:02:39]}  b4 {[%clk 0:02:44]} 6. c4 {[%clk 0:02:33]}  bxc3 {[%clk 0:02:44]} 7. Nxc3 {[%clk 0:02:33]}  Bb7 {[%clk 0:02:43]} 8. Bd3 {[%clk 0:02:30]}  Bg7 {[%clk 0:02:41]} 9. e4 {[%clk 0:02:29]}  d6 {[%clk 0:02:38]} 10. O-O {[%clk 0:02:26]}  O-O {[%clk 0:02:37]} 11. Re1 {[%clk 0:02:23]}  Nbd7 {[%clk 0:02:33]} 12. Bf4 {[%clk 0:02:05]}  e5 {[%clk 0:01:55]} 13. dxe5 {[%clk 0:02:02]}  dxe5 {[%clk 0:01:55]} 14. Nxe5 {[%clk 0:01:53]}  Nh5 {[%clk 0:01:55]} 15. Nxd7 {[%clk 0:01:46]}  Qxd7 {[%clk 0:01:43]} 16. Be3 {[%clk 0:01:42]}  Rad8 {[%clk 0:01:41]} 17. Bc4 {[%clk 0:01:40]}  Qh3 {[%clk 0:01:40]} 18. Qf3 {[%clk 0:01:33]}  Nf6 {[%clk 0:01:39]} 19. Bf1 {[%clk 0:01:25]}  Qe6 {[%clk 0:01:37]} 20. Bg5 {[%clk 0:01:14]}  Rd4 {[%clk 0:01:36]} 21. Nd5 {[%clk 0:00:42]}  Nxe4 {[%clk 0:01:15]} 22. Nc3 {[%clk 0:00:37]}  Qb3 {[%clk 0:01:06]} 23. Be7 {[%clk 0:00:24]}  Nd2 {[%clk 0:00:59]} 0-1


[Site "https://www.chess.com"]

[Event "Titled Tuesday Blitz January 03 Early 2023"]
[White "Sarana, Alexey"]
[Black "Tang, Andrew"]
[WhiteFideId "24133795"]
[BlackFideId "2059630"]
[WhiteElo "2685"]
[BlackElo "2523"]
[Result "1-0"]
[Round "10"]
[TimeControl "180+2"]
[Date "2023.01.03"]
[WhiteClock "0:00:10"]
[BlackClock "0:00:02"]

1. c4 {[%clk 0:03:00]}  e6 {[%clk 0:03:00]} 2. Nc3 {[%clk 0:03:00]}  d5 {[%clk 0:03:00]} 3. cxd5 {[%clk 0:03:01]}  exd5 {[%clk 0:03:01]} 4. d4 {[%clk 0:03:02]}  c6 {[%clk 0:03:00]} 5. Bf4 {[%clk 0:03:02]}  Bf5 {[%clk 0:03:01]} 6. f3 {[%clk 0:02:57]}  Nf6 {[%clk 0:02:48]} 7. e3 {[%clk 0:02:57]}  Nbd7 {[%clk 0:02:41]} 8. g4 {[%clk 0:02:53]}  Bg6 {[%clk 0:02:37]} 9. h4 {[%clk 0:02:53]}  h6 {[%clk 0:02:37]} 10. Nge2 {[%clk 0:02:51]}  Nb6 {[%clk 0:02:32]} 11. Ng3 {[%clk 0:02:51]}  Bd6 {[%clk 0:02:30]} 12. Qd2 {[%clk 0:02:51]}  O-O {[%clk 0:02:28]} 13. Kf2 {[%clk 0:02:47]}  h5 {[%clk 0:02:16]} 14. g5 {[%clk 0:02:37]}  Ne8 {[%clk 0:02:16]} 15. Bxd6 {[%clk 0:02:33]}  Nxd6 {[%clk 0:02:16]} 16. b3 {[%clk 0:02:28]}  f6 {[%clk 0:02:16]} 17. gxf6 {[%clk 0:02:27]}  Qxf6 {[%clk 0:02:16]} 18. f4 {[%clk 0:02:27]}  Nf5 {[%clk 0:02:09]} 19. Nxf5 {[%clk 0:02:12]}  Bxf5 {[%clk 0:02:01]} 20. Bd3 {[%clk 0:02:09]}  Rae8 {[%clk 0:01:59]} 21. Rag1 {[%clk 0:02:07]}  Nc8 {[%clk 0:01:58]} 22. Bxf5 {[%clk 0:02:04]}  Qxf5 {[%clk 0:01:59]} 23. Rg5 {[%clk 0:02:04]}  Qh7 {[%clk 0:01:58]} 24. Rhg1 {[%clk 0:02:01]}  Rf7 {[%clk 0:01:57]} 25. Qd1 {[%clk 0:01:54]}  Rf5 {[%clk 0:01:43]} 26. Rg6 {[%clk 0:01:13]}  Kf7 {[%clk 0:01:29]} 27. Rxg7+ {[%clk 0:00:37]}  Qxg7 {[%clk 0:01:29]} 28. Rxg7+ {[%clk 0:00:38]}  Kxg7 {[%clk 0:01:30]} 29. Ne2 {[%clk 0:00:38]}  Nd6 {[%clk 0:01:29]} 30. Ng3 {[%clk 0:00:39]}  Ne4+ {[%clk 0:01:30]} 31. Nxe4 {[%clk 0:00:39]}  Rxe4 {[%clk 0:01:29]} 32. Qf3 {[%clk 0:00:35]}  Re8 {[%clk 0:01:23]} 33. b4 {[%clk 0:00:30]}  Kf7 {[%clk 0:01:17]} 34. a4 {[%clk 0:00:27]}  a6 {[%clk 0:01:09]} 35. Qd1 {[%clk 0:00:23]}  Kg7 {[%clk 0:00:45]} 36. b5 {[%clk 0:00:17]}  axb5 {[%clk 0:00:46]} 37. axb5 {[%clk 0:00:17]}  Re7 {[%clk 0:00:47]} 38. Qg1+ {[%clk 0:00:10]}  Kf7 {[%clk 0:00:21]} 39. Qb1 {[%clk 0:00:10]}  Kg6 {[%clk 0:00:12]} 40. Kf3 {[%clk 0:00:09]}  Rf7 {[%clk 0:00:09]} 41. Qc2 {[%clk 0:00:09]}  Rf6 {[%clk 0:00:09]} 42. Qc5 {[%clk 0:00:09]}  Re6 {[%clk 0:00:06]} 43. Qc2 {[%clk 0:00:09]}  Rf6 {[%clk 0:00:06]} 44. Qd3 {[%clk 0:00:10]}  Re6 {[%clk 0:00:06]} 45. Qb1 {[%clk 0:00:10]}  Rf6 {[%clk 0:00:04]} 46. Qa1 {[%clk 0:00:09]}  Re6 {[%clk 0:00:04]} 47. Qa8 {[%clk 0:00:10]}  Rf7 {[%clk 0:00:02]} 48. Qg8+ {[%clk 0:00:10]}  Kf6 {[%clk 0:00:02]} 49. Qg5# {[%clk 0:00:10]} 1-0


[Site "https://www.chess.com"]

[Event "Titled Tuesday Blitz January 03 Early 2023"]
[White "Zhigalko, Sergei"]
[Black "Vokhidov, Shamsiddin"]
[WhiteFideId "13502956"]
[BlackFideId "14204223"]
[WhiteElo "2572"]
[BlackElo "2586"]
[Result "1/2-1/2"]
[Round "10"]
[TimeControl "180+2"]
[Date "2023.01.03"]
[WhiteClock "0:00:05"]
[BlackClock "0:00:14"]

1. e4 {[%clk 0:03:00]}  c5 {[%clk 0:03:00]} 2. Nf3 {[%clk 0:03:00]}  d6 {[%clk 0:03:01]} 3. d4 {[%clk 0:03:01]}  cxd4 {[%clk 0:03:02]} 4. Qxd4 {[%clk 0:03:01]}  Nf6 {[%clk 0:03:01]} 5. Nc3 {[%clk 0:03:01]}  Nc6 {[%clk 0:02:58]} 6. Bb5 {[%clk 0:03:02]}  Bd7 {[%clk 0:02:59]} 7. Bxc6 {[%clk 0:03:02]}  Bxc6 {[%clk 0:03:00]} 8. Bg5 {[%clk 0:03:03]}  e6 {[%clk 0:03:00]} 9. O-O-O {[%clk 0:03:03]}  Be7 {[%clk 0:03:01]} 10. Rhe1 {[%clk 0:03:04]}  O-O {[%clk 0:03:01]} 11. Kb1 {[%clk 0:03:04]}  b5 {[%clk 0:02:58]} 12. Bxf6 {[%clk 0:03:02]}  Bxf6 {[%clk 0:02:56]} 13. Qxd6 {[%clk 0:03:03]}  Qb6 {[%clk 0:02:55]} 14. Ne5 {[%clk 0:02:58]}  Rfc8 {[%clk 0:02:45]} 15. Nd7 {[%clk 0:02:45]}  Bxd7 {[%clk 0:02:10]} 16. Qxb6 {[%clk 0:02:45]}  axb6 {[%clk 0:02:11]} 17. Rxd7 {[%clk 0:02:45]}  Bxc3 {[%clk 0:02:10]} 18. bxc3 {[%clk 0:02:46]}  Rxc3 {[%clk 0:02:09]} 19. Red1 {[%clk 0:02:47]}  g5 {[%clk 0:02:08]} 20. Rd8+ {[%clk 0:02:39]}  Rxd8 {[%clk 0:02:07]} 21. Rxd8+ {[%clk 0:02:40]}  Kg7 {[%clk 0:02:08]} 22. Rd6 {[%clk 0:02:38]}  Kf6 {[%clk 0:02:02]} 23. Rxb6 {[%clk 0:02:37]}  Rc5 {[%clk 0:02:02]} 24. Rb7 {[%clk 0:02:28]}  g4 {[%clk 0:02:02]} 25. Kb2 {[%clk 0:02:23]}  h5 {[%clk 0:02:02]} 26. Kb3 {[%clk 0:01:48]}  Kg6 {[%clk 0:02:02]} 27. f4 {[%clk 0:01:08]}  gxf3 {[%clk 0:01:48]} 28. gxf3 {[%clk 0:01:09]}  f6 {[%clk 0:01:49]} 29. h4 {[%clk 0:01:05]}  f5 {[%clk 0:01:45]} 30. c3 {[%clk 0:00:50]}  fxe4 {[%clk 0:01:45]} 31. fxe4 {[%clk 0:00:51]}  Re5 {[%clk 0:01:46]} 32. Rb8 {[%clk 0:00:27]}  Rxe4 {[%clk 0:01:44]} 33. Rxb5 {[%clk 0:00:27]}  Rxh4 {[%clk 0:01:44]} 34. a4 {[%clk 0:00:25]}  Rh1 {[%clk 0:01:44]} 35. Ka2 {[%clk 0:00:22]}  h4 {[%clk 0:01:43]} 36. a5 {[%clk 0:00:18]}  h3 {[%clk 0:01:34]} 37. Rb8 {[%clk 0:00:15]}  Rc1 {[%clk 0:01:25]} 38. Rh8 {[%clk 0:00:09]}  Rxc3 {[%clk 0:01:25]} 39. Kb2 {[%clk 0:00:06]}  Rc5 {[%clk 0:01:23]} 40. a6 {[%clk 0:00:06]}  Ra5 {[%clk 0:01:23]} 41. Rxh3 {[%clk 0:00:05]}  Rxa6 {[%clk 0:01:23]} 42. Kc2 {[%clk 0:00:05]}  Rd6 {[%clk 0:01:22]} 43. Rf3 {[%clk 0:00:03]}  e5 {[%clk 0:01:21]} 44. Rd3 {[%clk 0:00:02]}  Ra6 {[%clk 0:00:39]} 45. Kd2 {[%clk 0:00:02]}  Kf5 {[%clk 0:00:40]} 46. Ke3 {[%clk 0:00:03]}  Rh6 {[%clk 0:00:37]} 47. Rd8 {[%clk 0:00:02]}  Rh3+ {[%clk 0:00:37]} 48. Ke2 {[%clk 0:00:02]}  Ke4 {[%clk 0:00:37]} 49. Ra8 {[%clk 0:00:02]}  Rh2+ {[%clk 0:00:36]} 50. Ke1 {[%clk 0:00:02]}  Kf4 {[%clk 0:00:32]} 51. Ra4+ {[%clk 0:00:02]}  e4 {[%clk 0:00:29]} 52. Ra3 {[%clk 0:00:03]}  Rc2 {[%clk 0:00:29]} 53. Rb3 {[%clk 0:00:03]}  Ra2 {[%clk 0:00:28]} 54. Rc3 {[%clk 0:00:04]}  Ra1+ {[%clk 0:00:26]} 55. Ke2 {[%clk 0:00:04]}  Rb1 {[%clk 0:00:27]} 56. Ra3 {[%clk 0:00:03]}  Rg1 {[%clk 0:00:27]} 57. Kf2 {[%clk 0:00:04]}  Rc1 {[%clk 0:00:25]} 58. Ke2 {[%clk 0:00:04]}  Rc2+ {[%clk 0:00:25]} 59. Ke1 {[%clk 0:00:04]}  Rb2 {[%clk 0:00:26]} 60. Rc3 {[%clk 0:00:03]}  Ke5 {[%clk 0:00:24]} 61. Ra3 {[%clk 0:00:03]}  Kd4 {[%clk 0:00:24]} 62. Kd1 {[%clk 0:00:04]}  Rh2 {[%clk 0:00:22]} 63. Ke1 {[%clk 0:00:04]}  Rc2 {[%clk 0:00:22]} 64. Kd1 {[%clk 0:00:04]}  Rg2 {[%clk 0:00:22]} 65. Ke1 {[%clk 0:00:04]}  Ke5 {[%clk 0:00:23]} 66. Kd1 {[%clk 0:00:04]}  Rb2 {[%clk 0:00:23]} 67. Ke1 {[%clk 0:00:05]}  Kf4 {[%clk 0:00:23]} 68. Kf1 {[%clk 0:00:04]}  Rh2 {[%clk 0:00:17]} 69. Ke1 {[%clk 0:00:05]}  Rg2 {[%clk 0:00:17]} 70. Rb3 {[%clk 0:00:05]}  Rc2 {[%clk 0:00:14]} 71. Ra3 {[%clk 0:00:05]}  Ke5 {[%clk 0:00:14]} 72. Kd1 {[%clk 0:00:05]}  Rb2 {[%clk 0:00:14]} 73. Ke1 {[%clk 0:00:05]} 1/2-1/2


[Site "https://www.chess.com"]

[Event "Titled Tuesday Blitz January 03 Early 2023"]
[White "Lenderman, Aleksandr"]
[Black "Putnam, Liam"]
[WhiteFideId "2021285"]
[BlackFideId "30938279"]
[WhiteElo "2572"]
[BlackElo "2285"]
[Result "1-0"]
[Round "10"]
[TimeControl "180+2"]
[Date "2023.01.03"]
[WhiteClock "0:00:12"]
[BlackClock "0:00:02"]

1. e4 {[%clk 0:03:00]}  c5 {[%clk 0:02:58]} 2. c3 {[%clk 0:03:00]}  Nf6 {[%clk 0:02:58]} 3. e5 {[%clk 0:02:59]}  Nd5 {[%clk 0:02:58]} 4. d4 {[%clk 0:03:00]}  cxd4 {[%clk 0:02:58]} 5. Nf3 {[%clk 0:03:00]}  Nc6 {[%clk 0:02:58]} 6. Bc4 {[%clk 0:03:01]}  Nb6 {[%clk 0:02:52]} 7. Bb3 {[%clk 0:03:01]}  d6 {[%clk 0:02:41]} 8. exd6 {[%clk 0:02:59]}  Qxd6 {[%clk 0:02:42]} 9. O-O {[%clk 0:02:54]}  e6 {[%clk 0:02:33]} 10. cxd4 {[%clk 0:02:54]}  Be7 {[%clk 0:02:31]} 11. Nc3 {[%clk 0:02:54]}  O-O {[%clk 0:02:31]} 12. Qd3 {[%clk 0:02:49]}  Nb4 {[%clk 0:02:29]} 13. Qe2 {[%clk 0:02:48]}  N4d5 {[%clk 0:02:23]} 14. Rd1 {[%clk 0:02:48]}  Bd7 {[%clk 0:02:18]} 15. Ne5 {[%clk 0:02:48]}  Bc6 {[%clk 0:02:09]} 16. Ne4 {[%clk 0:02:32]}  Qd8 {[%clk 0:02:06]} 17. Rd3 {[%clk 0:02:26]}  Bb5 {[%clk 0:02:05]} 18. Qf3 {[%clk 0:02:14]}  Bxd3 {[%clk 0:02:03]} 19. Nxd3 {[%clk 0:02:14]}  Nf6 {[%clk 0:02:00]} 20. Be3 {[%clk 0:02:13]}  Nxe4 {[%clk 0:01:54]} 21. Qxe4 {[%clk 0:02:13]}  Nd5 {[%clk 0:01:54]} 22. Bd2 {[%clk 0:02:05]}  Rc8 {[%clk 0:01:54]} 23. g3 {[%clk 0:02:04]}  b6 {[%clk 0:01:40]} 24. Rd1 {[%clk 0:02:02]}  Nf6 {[%clk 0:01:40]} 25. Qe3 {[%clk 0:01:59]}  h6 {[%clk 0:01:32]} 26. Ne5 {[%clk 0:01:59]}  Bd6 {[%clk 0:01:30]} 27. Qf3 {[%clk 0:01:49]}  Nd7 {[%clk 0:01:20]} 28. Bf4 {[%clk 0:01:34]}  Qc7 {[%clk 0:00:55]} 29. Re1 {[%clk 0:01:19]}  Nxe5 {[%clk 0:00:52]} 30. dxe5 {[%clk 0:01:20]}  Bb4 {[%clk 0:00:52]} 31. Re4 {[%clk 0:01:19]}  Qc6 {[%clk 0:00:49]} 32. Bxh6 {[%clk 0:01:14]}  f5 {[%clk 0:00:27]} 33. exf6 {[%clk 0:00:59]}  Rxf6 {[%clk 0:00:27]} 34. Qxf6 {[%clk 0:00:54]}  gxf6 {[%clk 0:00:20]} 35. Rxe6 {[%clk 0:00:54]}  Kh7 {[%clk 0:00:17]} 36. Rxc6 {[%clk 0:00:54]}  Rxc6 {[%clk 0:00:18]} 37. Bf4 {[%clk 0:00:50]}  Kg7 {[%clk 0:00:11]} 38. Kg2 {[%clk 0:00:45]}  Rc8 {[%clk 0:00:10]} 39. h4 {[%clk 0:00:43]}  Rd8 {[%clk 0:00:10]} 40. g4 {[%clk 0:00:21]}  Bd2 {[%clk 0:00:09]} 41. Bg3 {[%clk 0:00:22]}  Bc1 {[%clk 0:00:08]} 42. Kf3 {[%clk 0:00:21]}  Bxb2 {[%clk 0:00:09]} 43. Ke4 {[%clk 0:00:21]}  Re8+ {[%clk 0:00:07]} 44. Kf5 {[%clk 0:00:21]}  Be5 {[%clk 0:00:05]} 45. Be6 {[%clk 0:00:19]}  Bxg3 {[%clk 0:00:05]} 46. fxg3 {[%clk 0:00:20]}  Rd8 {[%clk 0:00:04]} 47. g5 {[%clk 0:00:20]}  fxg5 {[%clk 0:00:04]} 48. Kxg5 {[%clk 0:00:21]}  Rd6 {[%clk 0:00:04]} 49. Bf5 {[%clk 0:00:21]}  a5 {[%clk 0:00:03]} 50. h5 {[%clk 0:00:20]}  b5 {[%clk 0:00:04]} 51. g4 {[%clk 0:00:20]}  b4 {[%clk 0:00:04]} 52. Bc2 {[%clk 0:00:20]}  Rc6 {[%clk 0:00:04]} 53. Bb3 {[%clk 0:00:18]}  Rc5+ {[%clk 0:00:04]} 54. Kh4 {[%clk 0:00:18]}  Kh6 {[%clk 0:00:05]} 55. Ba4 {[%clk 0:00:18]}  Rg5 {[%clk 0:00:05]} 56. Bc2 {[%clk 0:00:17]}  Rd5 {[%clk 0:00:06]} 57. Bb3 {[%clk 0:00:18]}  Rd4 {[%clk 0:00:06]} 58. Ba4 {[%clk 0:00:17]}  Re4 {[%clk 0:00:07]} 59. Bb3 {[%clk 0:00:17]}  Rf4 {[%clk 0:00:07]} 60. Ba4 {[%clk 0:00:18]}  Kg7 {[%clk 0:00:04]} 61. Kg5 {[%clk 0:00:18]}  Rd4 {[%clk 0:00:05]} 62. h6+ {[%clk 0:00:17]}  Kh8 {[%clk 0:00:04]} 63. Kh5 {[%clk 0:00:16]}  Rd6 {[%clk 0:00:03]} 64. g5 {[%clk 0:00:16]}  Kh7 {[%clk 0:00:04]} 65. g6+ {[%clk 0:00:13]}  Kh8 {[%clk 0:00:01]} 66. g7+ {[%clk 0:00:12]}  Kh7 {[%clk 0:00:01]} 67. Bc2+ {[%clk 0:00:12]}  Kg8 {[%clk 0:00:02]} 68. Bb3+ {[%clk 0:00:12]} 1-0


[Site "https://www.chess.com"]

[Event "Titled Tuesday Blitz January 03 Early 2023"]
[White "Keymer, Vincent"]
[Black "Molina, Roberto Junio Brito"]
[WhiteFideId "12940690"]
[BlackFideId "2109450"]
[WhiteElo "2700"]
[BlackElo "2403"]
[Result "1/2-1/2"]
[Round "10"]
[TimeControl "180+2"]
[Date "2023.01.03"]
[WhiteClock "0:00:01"]
[BlackClock "0:00:34"]

1. Nf3 {[%clk 0:03:00]}  d5 {[%clk 0:02:58]} 2. e3 {[%clk 0:03:01]}  c6 {[%clk 0:02:57]} 3. c4 {[%clk 0:03:01]}  Nf6 {[%clk 0:02:55]} 4. Nc3 {[%clk 0:03:02]}  a6 {[%clk 0:02:54]} 5. d4 {[%clk 0:03:01]}  Bf5 {[%clk 0:02:53]} 6. Nh4 {[%clk 0:02:59]}  Bg4 {[%clk 0:02:49]} 7. Qb3 {[%clk 0:02:59]}  b5 {[%clk 0:02:49]} 8. cxd5 {[%clk 0:02:37]}  cxd5 {[%clk 0:02:48]} 9. h3 {[%clk 0:02:37]}  Bc8 {[%clk 0:02:45]} 10. Bd2 {[%clk 0:02:36]}  Nc6 {[%clk 0:02:38]} 11. Rc1 {[%clk 0:02:29]}  Na5 {[%clk 0:02:37]} 12. Qc2 {[%clk 0:02:28]}  Nc4 {[%clk 0:02:36]} 13. Bd3 {[%clk 0:02:21]}  e6 {[%clk 0:02:32]} 14. Nf3 {[%clk 0:02:20]}  Bd6 {[%clk 0:02:30]} 15. O-O {[%clk 0:02:19]}  O-O {[%clk 0:02:29]} 16. Be1 {[%clk 0:02:18]}  Bb7 {[%clk 0:02:29]} 17. a4 {[%clk 0:02:15]}  b4 {[%clk 0:02:28]} 18. Ne2 {[%clk 0:02:14]}  Rc8 {[%clk 0:02:26]} 19. Qb1 {[%clk 0:02:14]}  Qa5 {[%clk 0:02:10]} 20. b3 {[%clk 0:02:09]}  Na3 {[%clk 0:02:10]} 21. Qb2 {[%clk 0:02:09]}  Rxc1 {[%clk 0:02:09]} 22. Nxc1 {[%clk 0:02:10]}  Qb6 {[%clk 0:02:07]} 23. Ne2 {[%clk 0:01:57]}  Rc8 {[%clk 0:02:06]} 24. Bd2 {[%clk 0:01:54]}  Ne4 {[%clk 0:02:05]} 25. Rc1 {[%clk 0:01:55]}  Rc6 {[%clk 0:01:58]} 26. Ne5 {[%clk 0:01:54]}  Bxe5 {[%clk 0:01:57]} 27. dxe5 {[%clk 0:01:53]}  Nxd2 {[%clk 0:01:52]} 28. Qxd2 {[%clk 0:01:53]}  a5 {[%clk 0:01:49]} 29. Nd4 {[%clk 0:01:51]}  Rc5 {[%clk 0:01:47]} 30. Qd1 {[%clk 0:01:41]}  Qc7 {[%clk 0:01:44]} 31. Rxc5 {[%clk 0:01:41]}  Qxc5 {[%clk 0:01:45]} 32. Qh5 {[%clk 0:01:41]}  g6 {[%clk 0:01:45]} 33. Qg5 {[%clk 0:01:38]}  Qc3 {[%clk 0:01:19]} 34. Qd8+ {[%clk 0:01:34]}  Kg7 {[%clk 0:01:19]} 35. Qe7 {[%clk 0:01:27]}  Bc8 {[%clk 0:01:16]} 36. Bb5 {[%clk 0:01:11]}  Nxb5 {[%clk 0:01:12]} 37. Qf6+ {[%clk 0:01:07]}  Kg8 {[%clk 0:01:11]} 38. Nxb5 {[%clk 0:01:07]}  Ba6 {[%clk 0:00:49]} 39. Qd8+ {[%clk 0:00:33]}  Kg7 {[%clk 0:00:48]} 40. Nc7 {[%clk 0:00:34]}  Qa1+ {[%clk 0:00:40]} 41. Kh2 {[%clk 0:00:27]}  Qxe5+ {[%clk 0:00:41]} 42. f4 {[%clk 0:00:06]}  Qxe3 {[%clk 0:00:39]} 43. Ne8+ {[%clk 0:00:06]}  Kf8 {[%clk 0:00:34]} 44. Nc7+ {[%clk 0:00:02]}  Kg7 {[%clk 0:00:33]} 45. Ne8+ {[%clk 0:00:01]}  Kf8 {[%clk 0:00:33]} 46. Nc7+ {[%clk 0:00:01]}  Kg7 {[%clk 0:00:34]} 1/2-1/2


[Site "https://www.chess.com"]